[Event "*** Titled Tuesday 3|2 Blitz"]
[Site "Chess.com"]
[Date "2016.06.07"]
[Round "4"]
[White "TomsKantans"]
[Black "Alexander_Moskalenko"]
[Result "0-1"]
[WhiteElo "2455"]
[BlackElo "2658"]
[TimeControl "180+2"]
[EndTime "11:47:07 PDT"]
[Termination "Alexander_Moskalenko won by resignation"]

1. e4 {[%clk 0:03:01.8]} 1... c5 {[%clk 0:03:00.8]} 2. Nf3 {[%clk 0:03:02.4]}
2... d6 {[%clk 0:03:01.7]} 3. d4 {[%clk 0:03:03.1]} 3... cxd4 {[%clk 0:03:03]}
4. Nxd4 {[%clk 0:03:05]} 4... Nf6 {[%clk 0:03:04.5]} 5. Nc3 {[%clk 0:03:06.3]}
5... g6 {[%clk 0:03:05.9]} 6. Be3 {[%clk 0:03:01.5]} 6... Bg7 {[%clk 0:03:06.1]}
7. f3 {[%clk 0:03:02.9]} 7... Nc6 {[%clk 0:03:07]} 8. Qd2 {[%clk 0:03:03.8]}
8... O-O {[%clk 0:03:08.2]} 9. g4 {[%clk 0:03:05.3]} 9... Be6 {[%clk 0:03:08.6]}
10. Nxe6 {[%clk 0:03:04]} 10... fxe6 {[%clk 0:03:09.2]} 11. h4 {[%clk
0:03:01.9]} 11... d5 {[%clk 0:03:09.2]} 12. O-O-O {[%clk 0:02:37.8]} 12... d4
{[%clk 0:02:40.7]} 13. Qh2 {[%clk 0:01:44.8]} 13... Qa5 {[%clk 0:02:30.7]} 14.
Bc4 {[%clk 0:01:19.7]} 14... dxe3 {[%clk 0:02:19.5]} 15. Bxe6+ {[%clk
0:01:19.7]} 15... Kh8 {[%clk 0:02:20.6]} 16. h5 {[%clk 0:01:18.3]} 16... gxh5
{[%clk 0:02:17.7]} 17. f4 {[%clk 0:00:43.4]} 17... Nxg4 {[%clk 0:02:16.2]} 18.
Bxg4 {[%clk 0:00:37.4]} 18... Bxc3 {[%clk 0:02:17.1]} 19. a3 {[%clk 0:00:11.6]}
19... Bg7 {[%clk 0:01:54.5]} 20. Rd5 {[%clk 0:00:11.8]} 20... Qb6 {[%clk
0:01:50]} 21. c3 {[%clk 0:00:10.6]} 21... e2 {[%clk 0:01:45.1]} 22. Rxh5 {[%clk
0:00:04.9]} 22... Qe3+ {[%clk 0:01:43.7]} 23. Kb1 {[%clk 0:00:06.5]} 23... Qxe4+
{[%clk 0:01:44.7]} 24. Ka1 {[%clk 0:00:08.2]} 24... e1=Q+ {[%clk 0:01:42.1]} 25.
Rxe1 {[%clk 0:00:08.1]} 25... Qxe1+ {[%clk 0:01:44]} 26. Ka2 {[%clk 0:00:10]}
26... Qe4 {[%clk 0:01:43.1]} 27. f5 {[%clk 0:00:08.6]} 27... Qd5+ {[%clk
0:01:44]} 28. Ka1 {[%clk 0:00:08.8]} 28... Qg8 {[%clk 0:01:45.6]} 0-1

[Event "*** Titled Tuesday 3|2 Blitz"]
[Site "Chess.com"]
[Date "2016.06.07"]
[Round "4"]
[White "jup1978"]
[Black "SabinaFoisor"]
[Result "0-1"]
[WhiteElo "2201"]
[BlackElo "2223"]
[TimeControl "180+2"]
[EndTime "11:47:17 PDT"]
[Termination "SabinaFoisor won by resignation"]

1. e4 {[%clk 0:03:01.9]} 1... e5 {[%clk 0:02:58.3]} 2. Nf3 {[%clk 0:02:56.5]}
2... Nc6 {[%clk 0:02:58.8]} 3. Bb5 {[%clk 0:02:56.2]} 3... a6 {[%clk 0:02:58.9]}
4. Ba4 {[%clk 0:02:57.3]} 4... Nf6 {[%clk 0:02:58.5]} 5. d3 {[%clk 0:02:57.9]}
5... b5 {[%clk 0:02:56.4]} 6. Bb3 {[%clk 0:02:57.8]} 6... Be7 {[%clk 0:02:57.5]}
7. a4 {[%clk 0:02:55]} 7... Bb7 {[%clk 0:02:56.2]} 8. axb5 {[%clk 0:02:55.2]}
8... axb5 {[%clk 0:02:58.1]} 9. Rxa8 {[%clk 0:02:55.2]} 9... Qxa8 {[%clk
0:02:57.7]} 10. c3 {[%clk 0:02:56.5]} 10... O-O {[%clk 0:02:57.7]} 11. O-O
{[%clk 0:02:56.6]} 11... d6 {[%clk 0:02:50.5]} 12. Nbd2 {[%clk 0:02:54.1]} 12...
h6 {[%clk 0:02:44.9]} 13. Re1 {[%clk 0:02:54.6]} 13... Re8 {[%clk 0:02:45.7]}
14. Nf1 {[%clk 0:02:54]} 14... Bf8 {[%clk 0:02:46]} 15. Ng3 {[%clk 0:02:49.8]}
15... Na5 {[%clk 0:02:43.4]} 16. Bc2 {[%clk 0:02:48.9]} 16... d5 {[%clk
0:02:41.8]} 17. Nh4 {[%clk 0:02:35.7]} 17... dxe4 {[%clk 0:02:37.1]} 18. dxe4
{[%clk 0:02:34.9]} 18... Nc4 {[%clk 0:02:34.2]} 19. Qf3 {[%clk 0:02:28.3]} 19...
Qa2 {[%clk 0:02:02.7]} 20. Bxh6 {[%clk 0:02:06.1]} 20... gxh6 {[%clk 0:01:57.5]}
21. Qxf6 {[%clk 0:02:06.5]} 21... Qxb2 {[%clk 0:01:35.1]} 22. Bd3 {[%clk
0:01:29.5]} 22... Qxc3 {[%clk 0:01:29.6]} 23. Rd1 {[%clk 0:01:29.8]} 23... Nb2
{[%clk 0:01:21]} 24. Bxb5 {[%clk 0:01:24.8]} 24... Re6 {[%clk 0:01:18.1]} 25.
Qd8 {[%clk 0:00:53.1]} 25... Nxd1 {[%clk 0:01:13.4]} 26. Nhf5 {[%clk 0:00:49.3]}
26... Qe1+ {[%clk 0:01:07.4]} 27. Bf1 {[%clk 0:00:50.1]} 27... Qxf2+ {[%clk
0:01:00.5]} 28. Kh1 {[%clk 0:00:50.6]} 28... Ne3 {[%clk 0:00:58.2]} 0-1

[Event "*** Titled Tuesday 3|2 Blitz"]
[Site "Chess.com"]
[Date "2016.06.07"]
[Round "4"]
[White "gmcorrales"]
[Black "amaidel"]
[Result "0-1"]
[WhiteElo "2517"]
[BlackElo "2455"]
[TimeControl "180+2"]
[EndTime "11:47:27 PDT"]
[Termination "amaidel won by resignation"]

1. e4 {[%clk 0:02:59.7]} 1... e5 {[%clk 0:03:00.8]} 2. Nf3 {[%clk 0:03:00.3]}
2... Nf6 {[%clk 0:03:02]} 3. Nxe5 {[%clk 0:02:59.3]} 3... d6 {[%clk 0:03:03.2]}
4. Nf3 {[%clk 0:03:00.5]} 4... Nxe4 {[%clk 0:03:04.5]} 5. d4 {[%clk 0:03:01.8]}
5... d5 {[%clk 0:03:02.9]} 6. Bd3 {[%clk 0:03:02.3]} 6... Nc6 {[%clk 0:03:03.7]}
7. O-O {[%clk 0:03:03.2]} 7... Be7 {[%clk 0:03:04.3]} 8. c4 {[%clk 0:03:04.2]}
8... Nb4 {[%clk 0:03:03.1]} 9. Be2 {[%clk 0:02:58.7]} 9... dxc4 {[%clk
0:02:59.6]} 10. Bxc4 {[%clk 0:02:54.9]} 10... O-O {[%clk 0:03:00.2]} 11. Nc3
{[%clk 0:02:55.3]} 11... Nxc3 {[%clk 0:02:57.1]} 12. bxc3 {[%clk 0:02:55.9]}
12... Nd5 {[%clk 0:02:58.2]} 13. Re1 {[%clk 0:02:43.5]} 13... Bf6 {[%clk
0:02:57]} 14. Bd2 {[%clk 0:02:40.9]} 14... c5 {[%clk 0:02:54.6]} 15. Ne5 {[%clk
0:02:29.8]} 15... Be6 {[%clk 0:02:40.5]} 16. Bd3 {[%clk 0:02:27]} 16... cxd4
{[%clk 0:02:38.6]} 17. cxd4 {[%clk 0:02:28.9]} 17... Rc8 {[%clk 0:02:32.8]} 18.
Qf3 {[%clk 0:02:26.5]} 18... Qb6 {[%clk 0:02:19.6]} 19. Re4 {[%clk 0:02:25.2]}
19... Nc3 {[%clk 0:02:12.7]} 20. Rf4 {[%clk 0:02:18.3]} 20... Bg5 {[%clk
0:02:02.1]} 21. Qh5 {[%clk 0:02:07.6]} 21... h6 {[%clk 0:01:59.7]} 22. Nf3
{[%clk 0:01:20.9]} 22... Bxf4 {[%clk 0:01:48.7]} 23. Bxf4 {[%clk 0:01:22.8]}
23... Bc4 {[%clk 0:01:48.2]} 24. Bf5 {[%clk 0:01:17.2]} 24... Ne2+ {[%clk
0:01:48.3]} 25. Kh1 {[%clk 0:01:17.5]} 25... Nxf4 {[%clk 0:01:49.5]} 26. Qg4
{[%clk 0:01:18.7]} 26... Ne6 {[%clk 0:01:48.3]} 27. Ne5 {[%clk 0:01:15.9]} 27...
Qxd4 {[%clk 0:01:40.8]} 28. Qxd4 {[%clk 0:01:12]} 28... Nxd4 {[%clk 0:01:41.3]}
29. Bxc8 {[%clk 0:01:13]} 29... Rxc8 {[%clk 0:01:42.1]} 30. Rd1 {[%clk 0:01:03]}
30... Bxa2 {[%clk 0:01:42.7]} 31. h4 {[%clk 0:01:01.6]} 31... Nc6 {[%clk
0:01:39.7]} 32. Ng4 {[%clk 0:01:00.6]} 32... Be6 {[%clk 0:01:39.9]} 33. Ne3
{[%clk 0:01:01]} 33... b5 {[%clk 0:01:40.7]} 34. g4 {[%clk 0:01:00.3]} 34... b4
{[%clk 0:01:40.6]} 35. f4 {[%clk 0:01:01.7]} 35... f6 {[%clk 0:01:26.4]} 36. f5
{[%clk 0:01:02.1]} 36... Bf7 {[%clk 0:01:27.4]} 37. Rd7 {[%clk 0:01:02.5]} 37...
b3 {[%clk 0:01:26.4]} 38. g5 {[%clk 0:01:03.9]} 38... hxg5 {[%clk 0:01:26.9]}
39. hxg5 {[%clk 0:01:05.8]} 39... fxg5 {[%clk 0:01:28.2]} 40. f6 {[%clk
0:01:07.3]} 40... b2 {[%clk 0:01:23.3]} 41. Rb7 {[%clk 0:01:08.3]} 41... Rb8
{[%clk 0:01:24.3]} 42. Rxb2 {[%clk 0:01:04.4]} 42... Rxb2 {[%clk 0:01:24.1]} 0-1

[Event "*** Titled Tuesday 3|2 Blitz"]
[Site "Chess.com"]
[Date "2016.06.07"]
[Round "4"]
[White "WanderingPuppet"]
[Black "AndreyOstrovskiy"]
[Result "0-1"]
[WhiteElo "2266"]
[BlackElo "2439"]
[TimeControl "180+2"]
[EndTime "11:47:47 PDT"]
[Termination "AndreyOstrovskiy won by resignation"]

1. e4 {[%clk 0:03:00.6]} 1... e5 {[%clk 0:03:00.4]} 2. Nf3 {[%clk 0:03:01.3]}
2... Nc6 {[%clk 0:03:01.7]} 3. Bb5 {[%clk 0:03:02.9]} 3... a6 {[%clk 0:03:02.8]}
4. Ba4 {[%clk 0:03:04.2]} 4... Nf6 {[%clk 0:03:04.1]} 5. O-O {[%clk 0:03:05.8]}
5... Be7 {[%clk 0:03:05.6]} 6. Re1 {[%clk 0:03:06.2]} 6... b5 {[%clk 0:03:06.8]}
7. Bb3 {[%clk 0:03:07.7]} 7... d6 {[%clk 0:03:08.5]} 8. c3 {[%clk 0:03:06.8]}
8... O-O {[%clk 0:03:08.9]} 9. h3 {[%clk 0:03:07.8]} 9... h6 {[%clk 0:03:09.2]}
10. a4 {[%clk 0:03:08.2]} 10... Bd7 {[%clk 0:03:09]} 11. d4 {[%clk 0:03:08.8]}
11... Re8 {[%clk 0:03:09.6]} 12. Nbd2 {[%clk 0:03:07.5]} 12... Bf8 {[%clk
0:03:10.6]} 13. Nf1 {[%clk 0:03:06]} 13... exd4 {[%clk 0:03:07.1]} 14. cxd4
{[%clk 0:02:57.9]} 14... Nxe4 {[%clk 0:03:02.2]} 15. d5 {[%clk 0:02:20.9]} 15...
Na5 {[%clk 0:02:53.3]} 16. Bc2 {[%clk 0:02:22.2]} 16... Nf6 {[%clk 0:02:53.7]}
17. Rxe8 {[%clk 0:02:16.6]} 17... Qxe8 {[%clk 0:02:54.2]} 18. axb5 {[%clk
0:02:11.2]} 18... axb5 {[%clk 0:02:54.5]} 19. Ne3 {[%clk 0:02:01.9]} 19... Nc4
{[%clk 0:02:53.4]} 20. Rxa8 {[%clk 0:01:56.2]} 20... Qxa8 {[%clk 0:02:55.3]} 21.
Bb3 {[%clk 0:00:44.3]} 21... Nb6 {[%clk 0:02:30.9]} 22. Qd4 {[%clk 0:00:39.6]}
22... Qa1 {[%clk 0:02:25.6]} 23. Qd1 {[%clk 0:00:34.6]} 23... b4 {[%clk
0:02:17.7]} 24. Kh2 {[%clk 0:00:35.6]} 24... Ba4 {[%clk 0:02:15.1]} 25. Bxa4
{[%clk 0:00:32.7]} 25... Qxa4 {[%clk 0:02:15.7]} 26. Qd3 {[%clk 0:00:23.5]}
26... Qa8 {[%clk 0:02:13.3]} 27. Qd4 {[%clk 0:00:15.3]} 27... Nbxd5 {[%clk
0:02:13.5]} 28. Nf5 {[%clk 0:00:13.3]} 28... c5 {[%clk 0:02:09.7]} 29. Qh4
{[%clk 0:00:13.2]} 29... Qa1 {[%clk 0:02:01.7]} 30. Bxh6 {[%clk 0:00:13.1]}
30... gxh6 {[%clk 0:01:43.4]} 31. Nxh6+ {[%clk 0:00:15]} 31... Bxh6 {[%clk
0:01:43]} 32. Qxh6 {[%clk 0:00:16.9]} 32... Qxb2 {[%clk 0:01:43.7]} 33. Qg5+
{[%clk 0:00:05.7]} 33... Kf8 {[%clk 0:01:43.2]} 34. Qf5 {[%clk 0:00:07.4]} 34...
Qxf2 {[%clk 0:01:36.2]} 35. Qc8+ {[%clk 0:00:04.5]} 35... Kg7 {[%clk 0:01:36.4]}
36. Qf5 {[%clk 0:00:05.2]} 36... Qxg2+ {[%clk 0:01:36.1]} 37. Kxg2 {[%clk
0:00:05.1]} 37... Ne3+ {[%clk 0:01:37.4]} 0-1

[Event "*** Titled Tuesday 3|2 Blitz"]
[Site "Chess.com"]
[Date "2016.06.07"]
[Round "4"]
[White "GeorgMeier"]
[Black "ChessWarrior7197"]
[Result "1-0"]
[WhiteElo "2721"]
[BlackElo "2523"]
[TimeControl "180+2"]
[EndTime "11:48:20 PDT"]
[Termination "GeorgMeier won by resignation"]

1. Nf3 {[%clk 0:03:01.9]} 1... Nf6 {[%clk 0:03:00.3]} 2. g3 {[%clk 0:03:03.3]}
2... e6 {[%clk 0:03:01.5]} 3. Bg2 {[%clk 0:03:04.6]} 3... d5 {[%clk 0:03:02.3]}
4. O-O {[%clk 0:03:05.8]} 4... Be7 {[%clk 0:03:02.7]} 5. d4 {[%clk 0:03:06.7]}
5... O-O {[%clk 0:03:02.7]} 6. c4 {[%clk 0:03:08]} 6... c6 {[%clk 0:03:03.9]} 7.
Nbd2 {[%clk 0:03:05.1]} 7... b6 {[%clk 0:03:03.6]} 8. Qc2 {[%clk 0:03:06.4]}
8... Nbd7 {[%clk 0:03:02.8]} 9. e4 {[%clk 0:03:07.2]} 9... dxe4 {[%clk
0:03:03.9]} 10. Nxe4 {[%clk 0:03:08.5]} 10... Nxe4 {[%clk 0:03:04]} 11. Qxe4
{[%clk 0:03:10.4]} 11... Bb7 {[%clk 0:03:05]} 12. Rd1 {[%clk 0:03:06]} 12... Nf6
{[%clk 0:03:01.8]} 13. Qe2 {[%clk 0:03:01.7]} 13... h6 {[%clk 0:03:01.3]} 14.
Bf4 {[%clk 0:02:53.2]} 14... Qc8 {[%clk 0:02:58.5]} 15. Rac1 {[%clk 0:02:53.2]}
15... Rd8 {[%clk 0:02:58.6]} 16. a3 {[%clk 0:02:44.3]} 16... a5 {[%clk
0:02:56.9]} 17. h4 {[%clk 0:02:38.2]} 17... c5 {[%clk 0:02:53.9]} 18. d5 {[%clk
0:02:31.3]} 18... Bf8 {[%clk 0:02:29.1]} 19. dxe6 {[%clk 0:02:28.8]} 19... Qxe6
{[%clk 0:02:28.5]} 20. Qxe6 {[%clk 0:02:29.3]} 20... fxe6 {[%clk 0:02:30.4]} 21.
Rxd8 {[%clk 0:02:03.2]} 21... Rxd8 {[%clk 0:02:30.7]} 22. Bc7 {[%clk 0:02:04.7]}
22... Ra8 {[%clk 0:02:20.8]} 23. Bxb6 {[%clk 0:01:58.7]} 23... Bd6 {[%clk
0:02:12.2]} 24. Rd1 {[%clk 0:01:51.1]} 24... Ne8 {[%clk 0:02:12.7]} 25. h5
{[%clk 0:01:42]} 25... Kf8 {[%clk 0:02:12.7]} 26. Nh4 {[%clk 0:01:38.4]} 26...
Bxg2 {[%clk 0:02:12.9]} 27. Kxg2 {[%clk 0:01:40.3]} 27... a4 {[%clk 0:02:04.6]}
28. Ng6+ {[%clk 0:01:39.9]} 28... Kf7 {[%clk 0:02:04.8]} 29. Rd2 {[%clk
0:01:34.2]} 29... Kf6 {[%clk 0:01:45.4]} 30. g4 {[%clk 0:01:29.9]} 30... Kf7
{[%clk 0:01:38.7]} 31. f3 {[%clk 0:01:26.6]} 31... Rb8 {[%clk 0:01:33.3]} 32.
Ba5 {[%clk 0:01:26.7]} 32... Rb7 {[%clk 0:01:27.7]} 33. Bc3 {[%clk 0:01:23.5]}
33... Be7 {[%clk 0:01:23.9]} 34. Ne5+ {[%clk 0:01:19.1]} 34... Kf8 {[%clk
0:01:21]} 35. Rd7 {[%clk 0:01:19.6]} 35... Rxd7 {[%clk 0:01:16.7]} 36. Nxd7+
{[%clk 0:01:21.5]} 36... Kf7 {[%clk 0:01:16.1]} 37. Kf2 {[%clk 0:01:15.7]} 37...
Nd6 {[%clk 0:01:15.3]} 38. Nxc5 {[%clk 0:01:15.3]} 38... Nxc4 {[%clk 0:01:12.3]}
39. Nxa4 {[%clk 0:01:16.6]} 39... e5 {[%clk 0:01:13.1]} 40. Ke2 {[%clk
0:01:16.9]} 40... Ke6 {[%clk 0:01:12.3]} 41. Kd3 {[%clk 0:01:15.3]} 41... Kd5
{[%clk 0:01:13.4]} 42. Bb4 {[%clk 0:01:02.1]} 42... Bxb4 {[%clk 0:01:10.8]} 43.
axb4 {[%clk 0:01:04]} 43... Nd6 {[%clk 0:01:12.5]} 44. Nc3+ {[%clk 0:01:05.3]}
44... Kc6 {[%clk 0:01:14]} 45. Ne4 {[%clk 0:01:02.9]} 45... Nb5 {[%clk
0:01:09.3]} 46. Ng3 {[%clk 0:01:00.7]} 46... Nd4 {[%clk 0:01:05.6]} 47. Ke4
{[%clk 0:01:01.8]} 47... Kb5 {[%clk 0:01:04.9]} 48. Nf5 {[%clk 0:01:02.9]} 1-0

[Event "*** Titled Tuesday 3|2 Blitz"]
[Site "Chess.com"]
[Date "2016.06.07"]
[Round "4"]
[White "dretch"]
[Black "AlexanderL"]
[Result "0-1"]
[WhiteElo "2585"]
[BlackElo "2606"]
[TimeControl "180+2"]
[EndTime "11:48:36 PDT"]
[Termination "AlexanderL won by resignation"]

1. d4 {[%clk 0:03:01.9]} 1... e6 {[%clk 0:03:00.1]} 2. c4 {[%clk 0:03:02.6]}
2... d5 {[%clk 0:02:58.4]} 3. Nc3 {[%clk 0:03:03.2]} 3... c6 {[%clk 0:02:58.5]}
4. e3 {[%clk 0:03:00.9]} 4... Nf6 {[%clk 0:02:58.8]} 5. Nf3 {[%clk 0:03:02.3]}
5... Nbd7 {[%clk 0:02:57.6]} 6. Bd3 {[%clk 0:03:03.3]} 6... dxc4 {[%clk
0:02:53.6]} 7. Bxc4 {[%clk 0:03:05.2]} 7... b5 {[%clk 0:02:53.8]} 8. Bd3 {[%clk
0:03:06.2]} 8... Bd6 {[%clk 0:02:52.7]} 9. e4 {[%clk 0:02:58.6]} 9... e5 {[%clk
0:02:52.2]} 10. Ne2 {[%clk 0:02:59.2]} 10... O-O {[%clk 0:02:29.9]} 11. O-O
{[%clk 0:02:53.4]} 11... Re8 {[%clk 0:02:27.5]} 12. Bg5 {[%clk 0:02:46.3]} 12...
h6 {[%clk 0:02:26.8]} 13. Bh4 {[%clk 0:02:39.9]} 13... Qb6 {[%clk 0:02:23.7]}
14. a4 {[%clk 0:02:35.5]} 14... a6 {[%clk 0:02:20.7]} 15. axb5 {[%clk
0:02:34.7]} 15... cxb5 {[%clk 0:02:20.9]} 16. Kh1 {[%clk 0:02:11]} 16... Bb7
{[%clk 0:02:16.9]} 17. d5 {[%clk 0:02:11.2]} 17... Nxd5 {[%clk 0:02:14.3]} 18.
exd5 {[%clk 0:02:09.1]} 18... e4 {[%clk 0:02:15.4]} 19. Bxe4 {[%clk 0:02:02.8]}
19... Rxe4 {[%clk 0:02:15.7]} 20. Ng3 {[%clk 0:02:02.3]} 20... Rf4 {[%clk
0:01:57.6]} 21. Nh5 {[%clk 0:01:52.4]} 21... Rf5 {[%clk 0:01:55.2]} 22. Nd4
{[%clk 0:01:46.4]} 22... Rxd5 {[%clk 0:01:47]} 23. Qg4 {[%clk 0:01:37.5]} 23...
Qxd4 {[%clk 0:01:41.6]} 24. f4 {[%clk 0:01:31.4]} 24... Rxh5 {[%clk 0:01:10.3]}
25. Qxh5 {[%clk 0:01:30.2]} 25... Nf6 {[%clk 0:01:10.5]} 26. Bxf6 {[%clk
0:01:28.6]} 26... Qxf6 {[%clk 0:01:11]} 27. Rad1 {[%clk 0:01:29.5]} 27... Re8
{[%clk 0:01:10.7]} 28. h3 {[%clk 0:01:28.4]} 28... Qxb2 {[%clk 0:01:00.3]} 29.
Rg1 {[%clk 0:01:26.6]} 29... Qf6 {[%clk 0:00:59.8]} 30. Qg4 {[%clk 0:01:23.6]}
30... Qxf4 {[%clk 0:00:56.1]} 31. Qxf4 {[%clk 0:01:22]} 31... Bxf4 {[%clk
0:00:58]} 32. Rd7 {[%clk 0:01:21.6]} 32... Bc6 {[%clk 0:00:58.3]} 33. Ra7 {[%clk
0:01:22.7]} 33... Be3 {[%clk 0:00:58.3]} 34. Rxa6 {[%clk 0:01:23]} 34... Bxg1
{[%clk 0:00:57.3]} 35. Kxg1 {[%clk 0:01:24]} 35... Bd5 {[%clk 0:00:56.9]} 36.
Rd6 {[%clk 0:01:23.4]} 36... Bc4 {[%clk 0:00:57.5]} 37. Rb6 {[%clk 0:01:22.2]}
37... g6 {[%clk 0:00:58.6]} 38. h4 {[%clk 0:01:22.8]} 38... Re2 {[%clk
0:00:58.6]} 39. h5 {[%clk 0:01:20.9]} 39... Kg7 {[%clk 0:00:59.5]} 40. hxg6
{[%clk 0:01:21.7]} 40... fxg6 {[%clk 0:01:00.4]} 41. Kh2 {[%clk 0:01:20.3]}
41... Rb2 {[%clk 0:01:00.3]} 42. Kh3 {[%clk 0:01:19.9]} 42... Bf7 {[%clk
0:00:58.4]} 43. Rb7 {[%clk 0:01:18]} 43... b4 {[%clk 0:00:59.6]} 44. g4 {[%clk
0:01:17.3]} 44... b3 {[%clk 0:00:59.6]} 45. g5 {[%clk 0:01:15.5]} 45... hxg5
{[%clk 0:00:59.8]} 46. Kg4 {[%clk 0:01:16.1]} 46... Rg2+ {[%clk 0:01:00.4]} 47.
Kh3 {[%clk 0:01:16.8]} 47... Rc2 {[%clk 0:01:00.1]} 48. Kg4 {[%clk 0:01:16.8]}
48... b2 {[%clk 0:00:58.2]} 49. Kxg5 {[%clk 0:01:17.4]} 49... Rg2+ {[%clk
0:00:59]} 50. Kh4 {[%clk 0:01:17.5]} 50... Kf6 {[%clk 0:00:56.1]} 51. Rb8 {[%clk
0:01:11.2]} 51... Ba2 {[%clk 0:00:51]} 52. Rb6+ {[%clk 0:01:09]} 52... Ke5
{[%clk 0:00:50.8]} 53. Rb5+ {[%clk 0:01:07.3]} 53... Kd4 {[%clk 0:00:50.6]} 0-1

[Event "*** Titled Tuesday 3|2 Blitz"]
[Site "Chess.com"]
[Date "2016.06.07"]
[Round "4"]
[White "matej2221"]
[Black "GMBenjaminBok"]
[Result "1/2-1/2"]
[WhiteElo "2445"]
[BlackElo "2601"]
[TimeControl "180+2"]
[EndTime "11:48:42 PDT"]
[Termination "Game drawn by stalemate"]

1. e4 {[%clk 0:03:01.9]} 1... c5 {[%clk 0:03:00.7]} 2. Nf3 {[%clk 0:03:01.3]}
2... d6 {[%clk 0:03:02.1]} 3. d4 {[%clk 0:03:02.4]} 3... cxd4 {[%clk 0:03:04]}
4. Nxd4 {[%clk 0:03:04.3]} 4... Nf6 {[%clk 0:03:05.5]} 5. f3 {[%clk 0:03:05.9]}
5... e5 {[%clk 0:03:01.3]} 6. Nb3 {[%clk 0:03:06.8]} 6... d5 {[%clk 0:03:02.3]}
7. Bg5 {[%clk 0:03:07.6]} 7... Be6 {[%clk 0:02:59.8]} 8. Bxf6 {[%clk 0:03:07.9]}
8... gxf6 {[%clk 0:02:59.1]} 9. exd5 {[%clk 0:03:08.8]} 9... Qxd5 {[%clk
0:02:57.1]} 10. Qxd5 {[%clk 0:03:08.6]} 10... Bxd5 {[%clk 0:02:58.4]} 11. Nc3
{[%clk 0:03:10.5]} 11... Bb4 {[%clk 0:02:56.7]} 12. O-O-O {[%clk 0:03:09.4]}
12... Bxb3 {[%clk 0:02:55.6]} 13. axb3 {[%clk 0:03:08]} 13... Bxc3 {[%clk
0:02:56.7]} 14. bxc3 {[%clk 0:03:08.5]} 14... Ke7 {[%clk 0:02:58.1]} 15. Bc4
{[%clk 0:03:00.4]} 15... Nd7 {[%clk 0:02:55.4]} 16. Bxf7 {[%clk 0:02:58.7]}
16... Rac8 {[%clk 0:02:47]} 17. Kb2 {[%clk 0:02:58.1]} 17... Rc7 {[%clk
0:02:41.4]} 18. Bd5 {[%clk 0:02:55.3]} 18... Rhc8 {[%clk 0:02:40]} 19. c4 {[%clk
0:02:51.3]} 19... b5 {[%clk 0:02:40.5]} 20. Rhf1 {[%clk 0:02:21.9]} 20... Nb6
{[%clk 0:02:26.3]} 21. f4 {[%clk 0:02:05.5]} 21... bxc4 {[%clk 0:02:26]} 22.
Bxc4 {[%clk 0:02:05.3]} 22... Nxc4+ {[%clk 0:02:25.8]} 23. bxc4 {[%clk
0:02:07.2]} 23... Rxc4 {[%clk 0:02:26.1]} 24. Rd2 {[%clk 0:01:58.7]} 24... Rb8+
{[%clk 0:01:54.5]} 25. Kc1 {[%clk 0:01:59]} 25... Ra4 {[%clk 0:01:52.9]} 26.
Rdf2 {[%clk 0:01:56.2]} 26... e4 {[%clk 0:01:54]} 27. Kd2 {[%clk 0:01:49.5]}
27... Rd8+ {[%clk 0:01:45.8]} 28. Ke3 {[%clk 0:01:50.3]} 28... f5 {[%clk
0:01:44.9]} 29. Rd2 {[%clk 0:01:49.8]} 29... Ra3+ {[%clk 0:01:41.2]} 30. Ke2
{[%clk 0:01:49.9]} 30... Rxd2+ {[%clk 0:01:41.6]} 31. Kxd2 {[%clk 0:01:51.8]}
31... a5 {[%clk 0:01:33.1]} 32. Rb1 {[%clk 0:01:49.6]} 32... e3+ {[%clk
0:01:32]} 33. Ke2 {[%clk 0:01:49.2]} 33... a4 {[%clk 0:01:30.9]} 34. Rb7+ {[%clk
0:01:43.6]} 34... Ke6 {[%clk 0:01:29.2]} 35. Rxh7 {[%clk 0:01:44.1]} 35... Rc3
{[%clk 0:01:29.7]} 36. Ra7 {[%clk 0:01:43.9]} 36... a3 {[%clk 0:01:29.8]} 37. h4
{[%clk 0:01:38.2]} 37... Rxc2+ {[%clk 0:01:11]} 38. Kxe3 {[%clk 0:01:39]} 38...
Rxg2 {[%clk 0:01:10.2]} 39. Kf3 {[%clk 0:01:39.1]} 39... Ra2 {[%clk 0:01:06.2]}
40. Ra6+ {[%clk 0:01:38.7]} 40... Kf7 {[%clk 0:01:05.7]} 41. Kg3 {[%clk
0:01:34.2]} 41... Ra1 {[%clk 0:01:05.7]} 42. h5 {[%clk 0:01:26.4]} 42... a2
{[%clk 0:01:06]} 43. Kh2 {[%clk 0:01:26.3]} 43... Kg7 {[%clk 0:01:06.2]} 44. Kg2
{[%clk 0:01:27.1]} 44... Kh7 {[%clk 0:01:06.6]} 45. Kh2 {[%clk 0:01:28.3]} 45...
Rf1 {[%clk 0:01:06.4]} 46. Rxa2 {[%clk 0:01:27.2]} 46... Rxf4 {[%clk 0:01:07.1]}
47. Kg3 {[%clk 0:01:25.6]} 47... Rg4+ {[%clk 0:01:07.4]} 48. Kf3 {[%clk
0:01:26.5]} 48... Kh6 {[%clk 0:01:08.3]} 49. Rh2 {[%clk 0:01:24.9]} 49... Ra4
{[%clk 0:01:06.8]} 50. Rh1 {[%clk 0:01:24.3]} 50... Rb4 {[%clk 0:01:04.1]} 51.
Rh2 {[%clk 0:01:25.4]} 51... Kg5 {[%clk 0:01:03]} 52. h6 {[%clk 0:01:22.5]}
52... Rb3+ {[%clk 0:01:03.6]} 53. Kg2 {[%clk 0:01:23.3]} 53... Rb2+ {[%clk
0:01:04.8]} 54. Kg1 {[%clk 0:01:24]} 54... Rxh2 {[%clk 0:01:04.2]} 55. Kxh2
{[%clk 0:01:25.9]} 55... Kxh6 {[%clk 0:01:05.1]} 56. Kg3 {[%clk 0:01:27.6]}
56... Kg5 {[%clk 0:01:06.2]} 57. Kf3 {[%clk 0:01:29.3]} 57... f4 {[%clk
0:01:07.4]} 58. Kf2 {[%clk 0:01:30.7]} 58... Kg4 {[%clk 0:01:08.7]} 59. Kg2
{[%clk 0:01:32.2]} 59... f3+ {[%clk 0:01:10.1]} 60. Kf2 {[%clk 0:01:33.9]} 60...
Kf4 {[%clk 0:01:11.3]} 61. Kf1 {[%clk 0:01:35.5]} 61... Ke3 {[%clk 0:01:12.3]}
62. Ke1 {[%clk 0:01:36.8]} 62... f2+ {[%clk 0:01:13.7]} 63. Kf1 {[%clk
0:01:38.2]} 63... Kf3 {[%clk 0:01:15.6]} 1/2-1/2